[Event "*** SCC Grand Prix: Titled Tuesday Blitz"]
[Site "Chess.com"]
[Date "2020.08.25"]
[Round "7"]
[White "checkitas"]
[Black "Smascher17"]
[Result "1-0"]
[WhiteElo "2301"]
[BlackElo "2389"]
[TimeControl "180+1"]
[EndTime "11:19:18 PDT"]
[Termination "checkitas won by resignation"]

1. d4 {[%clk 0:03:00.9]} 1... Nf6 {[%clk 0:02:57.4]} 2. c4 {[%clk 0:03:01.4]}
2... g6 {[%clk 0:02:56.9]} 3. Nf3 {[%clk 0:03:01.9]} 3... Bg7 {[%clk 0:02:57.8]}
4. g3 {[%clk 0:03:02.4]} 4... O-O {[%clk 0:02:58.3]} 5. Bg2 {[%clk 0:03:02.8]}
5... d6 {[%clk 0:02:59.2]} 6. O-O {[%clk 0:03:03]} 6... Nbd7 {[%clk 0:02:59.5]}
7. Nc3 {[%clk 0:03:01.2]} 7... c6 {[%clk 0:02:58.8]} 8. e4 {[%clk 0:02:53.8]}
8... e5 {[%clk 0:02:58.5]} 9. h3 {[%clk 0:02:52.4]} 9... Qb6 {[%clk 0:02:57.7]}
10. Re1 {[%clk 0:02:44]} 10... exd4 {[%clk 0:02:45.9]} 11. Nxd4 {[%clk
0:02:42.2]} 11... Re8 {[%clk 0:02:45.8]} 12. Re2 {[%clk 0:02:33.6]} 12... Nc5
{[%clk 0:01:43.4]} 13. Bf4 {[%clk 0:02:19.6]} 13... Qc7 {[%clk 0:01:30.9]} 14.
Ndb5 {[%clk 0:01:58.3]} 14... cxb5 {[%clk 0:01:26.4]} 15. Bxd6 {[%clk
0:01:57.4]} 15... Qb6 {[%clk 0:01:20.7]} 16. e5 {[%clk 0:01:49]} 16... Rd8
{[%clk 0:00:40.9]} 17. exf6 {[%clk 0:01:16]} 17... Rxd6 {[%clk 0:00:40.5]} 18.
Nd5 {[%clk 0:01:03.3]} 18... Rxd5 {[%clk 0:00:39.3]} 19. Re8+ {[%clk 0:00:55.6]}
19... Bf8 {[%clk 0:00:37.5]} 20. Bxd5 {[%clk 0:00:56]} 20... Ne6 {[%clk
0:00:20.4]} 21. Qd2 {[%clk 0:00:48.7]} 21... g5 {[%clk 0:00:18.4]} 22. Bxe6
{[%clk 0:00:39.8]} 22... fxe6 {[%clk 0:00:18.3]} 23. Qxg5+ {[%clk 0:00:39.2]}
23... Kf7 {[%clk 0:00:18.8]} 24. Qh5+ {[%clk 0:00:39]} 24... Kxf6 {[%clk
0:00:19.1]} 25. Rxf8+ {[%clk 0:00:38.6]} 25... Ke7 {[%clk 0:00:19.4]} 26. Rf7+
{[%clk 0:00:22.2]} 26... Kd6 {[%clk 0:00:16.5]} 27. Rd1+ {[%clk 0:00:20.7]} 1-0

[Event "*** SCC Grand Prix: Titled Tuesday Blitz"]
[Site "Chess.com"]
[Date "2020.08.25"]
[Round "7"]
[White "crackcubano"]
[Black "mamey78"]
[Result "1-0"]
[WhiteElo "2657"]
[BlackElo "2431"]
[TimeControl "180+1"]
[EndTime "11:19:19 PDT"]
[Termination "crackcubano won by resignation"]

1. Nf3 {[%clk 0:03:00.9]} 1... d5 {[%clk 0:02:58.4]} 2. d4 {[%clk 0:02:59.3]}
2... Nf6 {[%clk 0:02:56.9]} 3. c4 {[%clk 0:02:57.3]} 3... c6 {[%clk 0:02:54.6]}
4. e3 {[%clk 0:02:57.3]} 4... e6 {[%clk 0:02:53.3]} 5. Bd3 {[%clk 0:02:55.3]}
5... Nbd7 {[%clk 0:02:51.6]} 6. O-O {[%clk 0:02:53.5]} 6... Bd6 {[%clk
0:02:49.6]} 7. b3 {[%clk 0:02:52.2]} 7... e5 {[%clk 0:02:43]} 8. Be2 {[%clk
0:02:34.6]} 8... e4 {[%clk 0:02:34.3]} 9. Nfd2 {[%clk 0:02:34.2]} 9... h5 {[%clk
0:02:12.8]} 10. h3 {[%clk 0:02:30.4]} 10... Qe7 {[%clk 0:02:07.2]} 11. a4 {[%clk
0:02:27.9]} 11... h4 {[%clk 0:01:56.4]} 12. Ba3 {[%clk 0:02:26.4]} 12... Rh6
{[%clk 0:01:47.7]} 13. cxd5 {[%clk 0:02:21.2]} 13... Nxd5 {[%clk 0:01:34.3]} 14.
Bxd6 {[%clk 0:02:16.6]} 14... Rxd6 {[%clk 0:01:33.1]} 15. Bg4 {[%clk 0:01:55.9]}
15... Rg6 {[%clk 0:01:25.8]} 16. Bf5 {[%clk 0:01:50.9]} 16... Rg5 {[%clk
0:01:16.8]} 17. Bxe4 {[%clk 0:01:48.6]} 17... N7f6 {[%clk 0:01:16.3]} 18. Bxd5
{[%clk 0:01:42.5]} 18... cxd5 {[%clk 0:01:06.2]} 19. Nf3 {[%clk 0:01:38.3]}
19... Rh5 {[%clk 0:00:55]} 20. Nc3 {[%clk 0:01:25.5]} 20... Ne4 {[%clk
0:00:51.6]} 21. Rc1 {[%clk 0:01:11.5]} 21... Be6 {[%clk 0:00:46.3]} 22. Ne5
{[%clk 0:01:04.7]} 22... Rg5 {[%clk 0:00:39.4]} 23. f4 {[%clk 0:00:33.5]} 23...
Rg3 {[%clk 0:00:37.2]} 24. Rf3 {[%clk 0:00:28.6]} 24... f6 {[%clk 0:00:33.1]}
25. Nxe4 {[%clk 0:00:25.2]} 25... dxe4 {[%clk 0:00:30.3]} 26. Rxg3 {[%clk
0:00:24.6]} 26... hxg3 {[%clk 0:00:20.8]} 27. Qh5+ {[%clk 0:00:23.9]} 1-0

[Event "*** SCC Grand Prix: Titled Tuesday Blitz"]
[Site "Chess.com"]
[Date "2020.08.25"]
[Round "7"]
[White "AnonymousIM2023"]
[Black "Msb2"]
[Result "0-1"]
[WhiteElo "2624"]
[BlackElo "2834"]
[TimeControl "180+1"]
[EndTime "11:19:20 PDT"]
[Termination "Msb2 won by resignation"]

1. d4 {[%clk 0:03:00.9]} 1... Nf6 {[%clk 0:02:58.4]} 2. Nf3 {[%clk 0:02:59.8]}
2... d5 {[%clk 0:02:57.9]} 3. c4 {[%clk 0:02:59.5]} 3... e6 {[%clk 0:02:57.9]}
4. Nc3 {[%clk 0:02:59.8]} 4... Bb4 {[%clk 0:02:58]} 5. Bg5 {[%clk 0:02:57.6]}
5... h6 {[%clk 0:02:58.1]} 6. Bxf6 {[%clk 0:02:56.9]} 6... Qxf6 {[%clk 0:02:59]}
7. e3 {[%clk 0:02:57.1]} 7... O-O {[%clk 0:02:59.1]} 8. Bd3 {[%clk 0:02:57]}
8... dxc4 {[%clk 0:02:58.9]} 9. Bxc4 {[%clk 0:02:57.3]} 9... c5 {[%clk
0:02:59.6]} 10. O-O {[%clk 0:02:56.7]} 10... cxd4 {[%clk 0:02:59.9]} 11. exd4
{[%clk 0:02:56.6]} 11... Rd8 {[%clk 0:02:59.2]} 12. Qe2 {[%clk 0:02:55.8]} 12...
Bd7 {[%clk 0:02:54.2]} 13. Ne4 {[%clk 0:02:53.1]} 13... Qe7 {[%clk 0:02:53.2]}
14. Ne5 {[%clk 0:02:42.7]} 14... Nc6 {[%clk 0:02:43.7]} 15. Rad1 {[%clk
0:02:39.4]} 15... Nxe5 {[%clk 0:02:30.8]} 16. dxe5 {[%clk 0:02:39.1]} 16... Bc6
{[%clk 0:02:31.7]} 17. Bd3 {[%clk 0:02:31.2]} 17... Rd5 {[%clk 0:02:20.3]} 18.
a3 {[%clk 0:02:08]} 18... Ba5 {[%clk 0:02:17.8]} 19. Nd6 {[%clk 0:02:07.5]}
19... Bc7 {[%clk 0:02:00.9]} 20. Bc4 {[%clk 0:02:03.4]} 20... Rxd1 {[%clk
0:01:53.5]} 21. Rxd1 {[%clk 0:02:04.3]} 21... Rd8 {[%clk 0:01:53.9]} 22. Qd3
{[%clk 0:01:19.1]} 22... Qg5 {[%clk 0:01:41.6]} 23. Qg3 {[%clk 0:01:18.5]} 23...
Kf8 {[%clk 0:01:37.9]} 24. b4 {[%clk 0:00:29.4]} 24... a6 {[%clk 0:01:37.3]} 25.
Bb3 {[%clk 0:00:10.5]} 25... Qxg3 {[%clk 0:01:35.3]} 26. hxg3 {[%clk 0:00:10.2]}
26... Ke7 {[%clk 0:01:36.2]} 27. Nc4 {[%clk 0:00:10.3]} 27... Rxd1+ {[%clk
0:01:20.9]} 28. Bxd1 {[%clk 0:00:11.2]} 28... Bd5 {[%clk 0:01:21.6]} 29. Be2
{[%clk 0:00:07.2]} 29... b5 {[%clk 0:01:19.6]} 30. Ne3 {[%clk 0:00:06.9]} 30...
Bxe5 {[%clk 0:01:16.3]} 31. Nxd5+ {[%clk 0:00:05.1]} 31... exd5 {[%clk
0:01:17.2]} 32. Bg4 {[%clk 0:00:05.3]} 32... Bb2 {[%clk 0:01:11.7]} 33. Bc8
{[%clk 0:00:04.9]} 33... Kd6 {[%clk 0:01:12.3]} 34. Bxa6 {[%clk 0:00:03.9]}
34... Kc6 {[%clk 0:01:12.8]} 35. a4 {[%clk 0:00:01.3]} 35... bxa4 {[%clk
0:01:13.4]} 36. Bd3 {[%clk 0:00:01.3]} 36... a3 {[%clk 0:01:12.4]} 37. Bb1
{[%clk 0:00:01.8]} 37... Kb5 {[%clk 0:01:11.9]} 38. Kf1 {[%clk 0:00:02.5]} 38...
Kxb4 {[%clk 0:01:10.8]} 39. Ba2 {[%clk 0:00:03.4]} 39... d4 {[%clk 0:01:11.3]}
40. Ke2 {[%clk 0:00:03.8]} 40... Kc3 {[%clk 0:01:12.2]} 41. Kd1 {[%clk
0:00:04.2]} 41... f6 {[%clk 0:01:11.6]} 42. Bf7 {[%clk 0:00:04.2]} 42... d3
{[%clk 0:01:11]} 43. Ba2 {[%clk 0:00:04.6]} 43... d2 {[%clk 0:01:11.9]} 44. f3
{[%clk 0:00:05]} 44... Bc1 {[%clk 0:01:12.8]} 45. g4 {[%clk 0:00:05.3]} 45...
Kb2 {[%clk 0:01:13.7]} 46. Be6 {[%clk 0:00:05.2]} 46... a2 {[%clk 0:01:14.3]}
47. Bxa2 {[%clk 0:00:04.8]} 47... Kxa2 {[%clk 0:01:15.2]} 48. Kc2 {[%clk
0:00:05.3]} 48... Ka3 {[%clk 0:01:15.1]} 0-1

[Event "*** SCC Grand Prix: Titled Tuesday Blitz"]
[Site "Chess.com"]
[Date "2020.08.25"]
[Round "7"]
[White "Infernal_XaM"]
[Black "frederiksvane"]
[Result "1-0"]
[WhiteElo "2922"]
[BlackElo "2656"]
[TimeControl "180+1"]
[EndTime "11:19:22 PDT"]
[Termination "Infernal_XaM won by resignation"]

1. c4 {[%clk 0:03:00.9]} 1... Nf6 {[%clk 0:03:00.2]} 2. Nc3 {[%clk 0:03:01.4]}
2... e6 {[%clk 0:03:00.3]} 3. e4 {[%clk 0:03:01]} 3... d5 {[%clk 0:03:00.7]} 4.
cxd5 {[%clk 0:02:55.5]} 4... exd5 {[%clk 0:03:01.6]} 5. e5 {[%clk 0:02:55.8]}
5... Ne4 {[%clk 0:03:01.4]} 6. Nf3 {[%clk 0:02:54.8]} 6... Nc6 {[%clk
0:03:00.2]} 7. d3 {[%clk 0:02:51.6]} 7... Nxc3 {[%clk 0:02:58.2]} 8. bxc3 {[%clk
0:02:51.7]} 8... Bg4 {[%clk 0:02:55]} 9. d4 {[%clk 0:02:50.8]} 9... Be7 {[%clk
0:02:54.8]} 10. Bd3 {[%clk 0:02:50.5]} 10... O-O {[%clk 0:02:51.9]} 11. h3
{[%clk 0:02:49.1]} 11... Bh5 {[%clk 0:02:50.6]} 12. g4 {[%clk 0:02:47.6]} 12...
Bg6 {[%clk 0:02:50.7]} 13. h4 {[%clk 0:02:48]} 13... Qd7 {[%clk 0:02:44.5]} 14.
Rg1 {[%clk 0:02:28.6]} 14... f6 {[%clk 0:02:43.5]} 15. h5 {[%clk 0:01:49.6]}
15... Bxd3 {[%clk 0:02:41.8]} 16. Qxd3 {[%clk 0:01:49.2]} 16... Qe6 {[%clk
0:02:24.6]} 17. Qf5 {[%clk 0:01:04.1]} 17... Qxf5 {[%clk 0:02:22.3]} 18. gxf5
{[%clk 0:01:04.5]} 18... fxe5 {[%clk 0:02:22.8]} 19. Bh6 {[%clk 0:01:03.7]}
19... Bf6 {[%clk 0:02:19.3]} 20. Bxg7 {[%clk 0:01:03.3]} 20... Bxg7 {[%clk
0:02:16]} 21. h6 {[%clk 0:01:03.9]} 21... Rf7 {[%clk 0:02:13.5]} 22. Nxe5 {[%clk
0:01:03]} 22... Re8 {[%clk 0:01:47.1]} 23. f4 {[%clk 0:01:00.5]} 23... Kf8
{[%clk 0:01:43]} 24. hxg7+ {[%clk 0:00:57.6]} 24... Rxg7 {[%clk 0:01:43.9]} 25.
O-O-O {[%clk 0:00:54.7]} 25... Rxg1 {[%clk 0:00:52.4]} 26. Rxg1 {[%clk 0:00:54]}
26... Ne7 {[%clk 0:00:52.8]} 27. f6 {[%clk 0:00:36.1]} 27... Ng6 {[%clk
0:00:53]} 28. Rh1 {[%clk 0:00:23.7]} 28... Nxf4 {[%clk 0:00:46.5]} 29. Rxh7
{[%clk 0:00:23.6]} 29... Rxe5 {[%clk 0:00:30.5]} 30. dxe5 {[%clk 0:00:23.6]}
30... Nd3+ {[%clk 0:00:31.2]} 31. Kd2 {[%clk 0:00:24]} 31... Nxe5 {[%clk
0:00:32.1]} 32. Rxc7 {[%clk 0:00:23.9]} 32... Ng4 {[%clk 0:00:32.5]} 33. Rxb7
{[%clk 0:00:21.9]} 33... Nxf6 {[%clk 0:00:32.8]} 34. Rxa7 {[%clk 0:00:22.2]}
34... Ne4+ {[%clk 0:00:26.7]} 35. Kd3 {[%clk 0:00:22.2]} 35... Nd6 {[%clk
0:00:27.4]} 36. Rd7 {[%clk 0:00:19.4]} 1-0

[Event "*** SCC Grand Prix: Titled Tuesday Blitz"]
[Site "Chess.com"]
[Date "2020.08.25"]
[Round "7"]
[White "Euge_chess"]
[Black "KatarinaOstojic"]
[Result "0-1"]
[WhiteElo "2075"]
[BlackElo "2308"]
[TimeControl "180+1"]
[EndTime "11:19:23 PDT"]
[Termination "KatarinaOstojic won by checkmate"]

1. e4 {[%clk 0:03:00.9]} 1... c5 {[%clk 0:02:59.7]} 2. c3 {[%clk 0:03:00.3]}
2... d5 {[%clk 0:02:59.7]} 3. exd5 {[%clk 0:02:59.9]} 3... Qxd5 {[%clk
0:03:00.6]} 4. d4 {[%clk 0:03:00.4]} 4... Nf6 {[%clk 0:03:01.1]} 5. Nf3 {[%clk
0:03:00.3]} 5... e6 {[%clk 0:03:01.7]} 6. Be3 {[%clk 0:02:58.6]} 6... Nc6 {[%clk
0:03:01.6]} 7. Be2 {[%clk 0:02:55.1]} 7... cxd4 {[%clk 0:03:01.3]} 8. cxd4
{[%clk 0:02:52.7]} 8... Be7 {[%clk 0:03:01.1]} 9. Nc3 {[%clk 0:02:51.6]} 9...
Qd8 {[%clk 0:03:01.1]} 10. O-O {[%clk 0:02:50.1]} 10... O-O {[%clk 0:03:01.5]}
11. Ne5 {[%clk 0:02:46.1]} 11... Nb4 {[%clk 0:02:53.7]} 12. Bf3 {[%clk
0:02:31.3]} 12... Nbd5 {[%clk 0:02:51.2]} 13. Qb3 {[%clk 0:02:27.4]} 13... a6
{[%clk 0:02:19.8]} 14. Bg5 {[%clk 0:02:22.7]} 14... h6 {[%clk 0:02:07.1]} 15.
Nxd5 {[%clk 0:02:14.9]} 15... Nxd5 {[%clk 0:01:53.6]} 16. Bxe7 {[%clk
0:02:12.3]} 16... Nxe7 {[%clk 0:01:54.5]} 17. Rfd1 {[%clk 0:01:59.4]} 17... Nd5
{[%clk 0:01:49.6]} 18. Rac1 {[%clk 0:01:51.1]} 18... Qd6 {[%clk 0:01:42.7]} 19.
Nc4 {[%clk 0:01:39.8]} 19... Qd8 {[%clk 0:01:31.9]} 20. Ne5 {[%clk 0:01:31.6]}
20... b6 {[%clk 0:01:23]} 21. Nc6 {[%clk 0:01:25.2]} 21... Qe8 {[%clk 0:01:04]}
22. Bxd5 {[%clk 0:01:20.1]} 22... exd5 {[%clk 0:01:04.9]} 23. Qxb6 {[%clk
0:01:06.8]} 23... Bd7 {[%clk 0:01:04.5]} 24. Ne5 {[%clk 0:01:02.1]} 24... Be6
{[%clk 0:01:03.2]} 25. b3 {[%clk 0:00:56.6]} 25... a5 {[%clk 0:01:01.9]} 26. Rc7
{[%clk 0:00:46.1]} 26... a4 {[%clk 0:01:01.1]} 27. b4 {[%clk 0:00:36.4]} 27...
a3 {[%clk 0:00:59]} 28. Rdc1 {[%clk 0:00:30.5]} 28... Qa4 {[%clk 0:00:57.9]} 29.
Qc5 {[%clk 0:00:23.3]} 29... Rfb8 {[%clk 0:00:56.7]} 30. Nc6 {[%clk 0:00:16.5]}
30... Rb5 {[%clk 0:00:49.8]} 31. Ne7+ {[%clk 0:00:10.4]} 31... Kh8 {[%clk
0:00:49.8]} 32. Rc8+ {[%clk 0:00:08.9]} 32... Bxc8 {[%clk 0:00:47.6]} 33. Nxc8
{[%clk 0:00:05.2]} 33... Rxc5 {[%clk 0:00:46.9]} 34. Rxc5 {[%clk 0:00:04.9]}
34... Qd1# {[%clk 0:00:45.2]} 0-1

[Event "*** SCC Grand Prix: Titled Tuesday Blitz"]
[Site "Chess.com"]
[Date "2020.08.25"]
[Round "7"]
[White "Jovidon91"]
[Black "nitpicker"]
[Result "1-0"]
[WhiteElo "2467"]
[BlackElo "2232"]
[TimeControl "180+1"]
[EndTime "11:19:26 PDT"]
[Termination "Jovidon91 won on time"]

1. d4 {[%clk 0:02:59.6]} 1... Nf6 {[%clk 0:02:59.3]} 2. c4 {[%clk 0:02:59.5]}
2... e6 {[%clk 0:02:59.5]} 3. g3 {[%clk 0:02:59.2]} 3... d5 {[%clk 0:02:58.2]}
4. Nf3 {[%clk 0:02:58.4]} 4... Bb4+ {[%clk 0:02:57.5]} 5. Bd2 {[%clk 0:02:58.2]}
5... Be7 {[%clk 0:02:58]} 6. Bg2 {[%clk 0:02:58.6]} 6... O-O {[%clk 0:02:58.3]}
7. O-O {[%clk 0:02:59.1]} 7... c6 {[%clk 0:02:58.8]} 8. Qc2 {[%clk 0:02:55.6]}
8... b6 {[%clk 0:02:58.2]} 9. Ne5 {[%clk 0:02:51.6]} 9... Bb7 {[%clk 0:02:46.6]}
10. Nc3 {[%clk 0:02:51.5]} 10... Nbd7 {[%clk 0:02:41.9]} 11. e4 {[%clk
0:02:48.8]} 11... Rc8 {[%clk 0:02:24.9]} 12. Rad1 {[%clk 0:02:39.7]} 12... Qc7
{[%clk 0:01:53.1]} 13. Bf4 {[%clk 0:02:39]} 13... Nh5 {[%clk 0:01:34.4]} 14.
exd5 {[%clk 0:01:57.6]} 14... cxd5 {[%clk 0:01:22.5]} 15. cxd5 {[%clk 0:01:57]}
15... Nxf4 {[%clk 0:01:17.5]} 16. gxf4 {[%clk 0:01:54.5]} 16... exd5 {[%clk
0:01:04.9]} 17. Qf5 {[%clk 0:01:51.9]} 17... Nf6 {[%clk 0:01:00.2]} 18. Kh1
{[%clk 0:01:50.6]} 18... Rcd8 {[%clk 0:00:54.8]} 19. Bf3 {[%clk 0:01:44.5]}
19... Bc8 {[%clk 0:00:52.4]} 20. Qd3 {[%clk 0:01:41.3]} 20... g6 {[%clk
0:00:44.1]} 21. Rg1 {[%clk 0:01:28.7]} 21... Kh8 {[%clk 0:00:39.6]} 22. Rg5
{[%clk 0:01:20.8]} 22... Bf5 {[%clk 0:00:34.4]} 23. Rxf5 {[%clk 0:01:20.3]}
23... gxf5 {[%clk 0:00:34]} 24. Qxf5 {[%clk 0:01:20.8]} 24... Qc8 {[%clk
0:00:33.2]} 25. Qg5 {[%clk 0:00:55.5]} 25... Ng8 {[%clk 0:00:25.2]} 26. Qh5
{[%clk 0:00:50.4]} 26... Qe6 {[%clk 0:00:18.8]} 27. Rg1 {[%clk 0:00:47.9]} 27...
Bf6 {[%clk 0:00:09.6]} 28. Bg4 {[%clk 0:00:32.8]} 28... Qe8 {[%clk 0:00:04.1]}
29. Bf5 {[%clk 0:00:28.7]} 1-0

[Event "*** SCC Grand Prix: Titled Tuesday Blitz"]
[Site "Chess.com"]
[Date "2020.08.25"]
[Round "7"]
[White "ZverevLev"]
[Black "politeplayer"]
[Result "1-0"]
[WhiteElo "2354"]
[BlackElo "2208"]
[TimeControl "180+1"]
[EndTime "11:19:26 PDT"]
[Termination "ZverevLev won on time"]

1. e4 {[%clk 0:03:00.9]} 1... d6 {[%clk 0:02:59]} 2. d4 {[%clk 0:02:59.4]} 2...
Nf6 {[%clk 0:02:59]} 3. Nc3 {[%clk 0:02:59.3]} 3... g6 {[%clk 0:02:58.8]} 4. f3
{[%clk 0:02:58.3]} 4... c6 {[%clk 0:02:57.3]} 5. Be3 {[%clk 0:02:58.6]} 5... b5
{[%clk 0:02:57.1]} 6. Qd2 {[%clk 0:02:58.4]} 6... a5 {[%clk 0:02:52.9]} 7. h4
{[%clk 0:02:57.5]} 7... h5 {[%clk 0:02:41.8]} 8. Nh3 {[%clk 0:02:56.1]} 8... b4
{[%clk 0:02:38.7]} 9. Ne2 {[%clk 0:02:53.9]} 9... Bxh3 {[%clk 0:02:35.6]} 10.
Rxh3 {[%clk 0:02:49.7]} 10... Nbd7 {[%clk 0:02:35.9]} 11. O-O-O {[%clk
0:02:47.3]} 11... Nb6 {[%clk 0:02:32.2]} 12. Nf4 {[%clk 0:02:39.6]} 12... Bh6
{[%clk 0:02:23.9]} 13. Qf2 {[%clk 0:02:33.4]} 13... a4 {[%clk 0:02:17.7]} 14. e5
{[%clk 0:02:31]} 14... Bxf4 {[%clk 0:02:09.4]} 15. Bxf4 {[%clk 0:02:25.8]} 15...
Nfd5 {[%clk 0:02:09]} 16. Bh2 {[%clk 0:02:25.5]} 16... a3 {[%clk 0:01:53.3]} 17.
exd6 {[%clk 0:02:23.4]} 17... axb2+ {[%clk 0:01:51.9]} 18. Kxb2 {[%clk
0:02:23.3]} 18... Nc3 {[%clk 0:01:16.7]} 19. Re1 {[%clk 0:02:22.9]} 19... Rxa2+
{[%clk 0:01:13.8]} 20. Kc1 {[%clk 0:02:22.2]} 20... Nbd5 {[%clk 0:01:02.3]} 21.
Bc4 {[%clk 0:02:18.2]} 21... Qa5 {[%clk 0:00:49.8]} 22. Bxa2 {[%clk 0:02:11.4]}
22... Nxa2+ {[%clk 0:00:48.4]} 23. Kd1 {[%clk 0:02:08.8]} 23... b3 {[%clk
0:00:28.4]} 24. Ke2 {[%clk 0:02:00.9]} 24... Qb5+ {[%clk 0:00:23.4]} 25. Kd2
{[%clk 0:01:55.7]} 25... Qb4+ {[%clk 0:00:18.8]} 26. Ke2 {[%clk 0:01:55.7]}
26... Qb5+ {[%clk 0:00:18.6]} 27. Kd2 {[%clk 0:01:55.6]} 27... b2 {[%clk
0:00:15.8]} 28. f4 {[%clk 0:01:46.8]} 28... b1=Q {[%clk 0:00:14.2]} 29. Rxb1
{[%clk 0:01:45.8]} 29... Qxb1 {[%clk 0:00:14.1]} 30. Rb3 {[%clk 0:01:46.4]}
30... Qc1+ {[%clk 0:00:13.6]} 31. Kd3 {[%clk 0:01:44.5]} 31... Nab4+ {[%clk
0:00:13.3]} 32. Kc4 {[%clk 0:01:41.9]} 32... O-O {[%clk 0:00:11.3]} 33. dxe7
{[%clk 0:01:40.6]} 33... Re8 {[%clk 0:00:10.7]} 34. c3 {[%clk 0:01:40.1]} 34...
Nc2 {[%clk 0:00:10]} 35. f5 {[%clk 0:01:36.5]} 35... Nce3+ {[%clk 0:00:09.8]}
36. Kc5 {[%clk 0:01:35.7]} 36... Nxf5 {[%clk 0:00:08.8]} 37. Be5 {[%clk
0:01:31.4]} 37... Nxc3 {[%clk 0:00:08.5]} 38. Qf4 {[%clk 0:01:11]} 38... Ne4+
{[%clk 0:00:06.4]} 39. Kb6 {[%clk 0:01:09.8]} 39... Rb8+ {[%clk 0:00:04.9]} 40.
Bxb8 {[%clk 0:01:08.6]} 40... Qxf4 {[%clk 0:00:01.9]} 41. e8=Q+ {[%clk
0:01:05.8]} 41... Kg7 {[%clk 0:00:01]} 42. Bxf4 {[%clk 0:01:06.7]} 1-0

[Event "*** SCC Grand Prix: Titled Tuesday Blitz"]
[Site "Chess.com"]
[Date "2020.08.25"]
[Round "7"]
[White "Nara_Kh"]
[Black "CraiggoryC"]
[Result "1-0"]
[WhiteElo "2318"]
[BlackElo "2131"]
[TimeControl "180+1"]
[EndTime "11:19:28 PDT"]
[Termination "Nara_Kh won on time"]

1. e4 {[%clk 0:03:00.9]} 1... e6 {[%clk 0:02:59.9]} 2. d4 {[%clk 0:03:00.4]}
2... d5 {[%clk 0:03:00.5]} 3. Nd2 {[%clk 0:03:00.1]} 3... Be7 {[%clk 0:03:00.2]}
4. Ngf3 {[%clk 0:02:59.5]} 4... Nf6 {[%clk 0:02:59.3]} 5. e5 {[%clk 0:02:59.9]}
5... Nfd7 {[%clk 0:03:00]} 6. Bd3 {[%clk 0:03:00.4]} 6... c5 {[%clk 0:03:00.6]}
7. c3 {[%clk 0:03:00.9]} 7... Nc6 {[%clk 0:03:01.1]} 8. O-O {[%clk 0:03:00.8]}
8... a5 {[%clk 0:03:01.7]} 9. a4 {[%clk 0:02:59.9]} 9... cxd4 {[%clk 0:02:58.8]}
10. cxd4 {[%clk 0:02:59.6]} 10... Nb4 {[%clk 0:02:59.4]} 11. Bb1 {[%clk
0:02:52.6]} 11... b6 {[%clk 0:02:57.3]} 12. Re1 {[%clk 0:02:52.5]} 12... Ba6
{[%clk 0:02:55.6]} 13. Nf1 {[%clk 0:02:52.6]} 13... O-O {[%clk 0:02:47.4]} 14.
Ng3 {[%clk 0:02:49.8]} 14... Rc8 {[%clk 0:02:43.8]} 15. h4 {[%clk 0:02:37.2]}
15... Bxh4 {[%clk 0:02:12.5]} 16. Nxh4 {[%clk 0:02:26.7]} 16... Qxh4 {[%clk
0:02:11.6]} 17. Ra3 {[%clk 0:02:26.6]} 17... Rc7 {[%clk 0:01:49.8]} 18. Nh1
{[%clk 0:02:08.3]} 18... Rfc8 {[%clk 0:01:43.6]} 19. Rh3 {[%clk 0:01:51]} 19...
Qe7 {[%clk 0:01:10.5]} 20. Bxh7+ {[%clk 0:01:44.9]} 20... Kf8 {[%clk 0:01:04.7]}
21. Bd3 {[%clk 0:01:18.7]} 21... Ke8 {[%clk 0:00:40.9]} 22. Bxa6 {[%clk
0:00:48.6]} 22... Nxa6 {[%clk 0:00:15.1]} 23. Bd2 {[%clk 0:00:40.2]} 23... Nb4
{[%clk 0:00:14.4]} 24. Qg4 {[%clk 0:00:33.5]} 24... Nf8 {[%clk 0:00:07]} 25. Bg5
{[%clk 0:00:27.6]} 25... Qd7 {[%clk 0:00:04]} 26. Ng3 {[%clk 0:00:26.7]} 26...
Qxa4 {[%clk 0:00:03.5]} 27. Nh5 {[%clk 0:00:26.1]} 27... Ng6 {[%clk 0:00:02]}
28. Nxg7+ {[%clk 0:00:25.9]} 28... Kd7 {[%clk 0:00:01.8]} 29. Rf3 {[%clk
0:00:19.7]} 1-0

[Event "*** SCC Grand Prix: Titled Tuesday Blitz"]
[Site "Chess.com"]
[Date "2020.08.25"]
[Round "7"]
[White "Iskusnyh"]
[Black "Dedic8"]
[Result "1-0"]
[WhiteElo "2595"]
[BlackElo "2731"]
[TimeControl "180+1"]
[EndTime "11:19:32 PDT"]
[Termination "Iskusnyh won by resignation"]

1. d4 {[%clk 0:03:00.9]} 1... Nf6 {[%clk 0:03:00]} 2. c4 {[%clk 0:03:00.3]} 2...
g6 {[%clk 0:03:00.4]} 3. g3 {[%clk 0:03:00.6]} 3... c6 {[%clk 0:03:00.1]} 4. Bg2
{[%clk 0:02:58.3]} 4... d5 {[%clk 0:03:00.4]} 5. Qa4 {[%clk 0:02:53.8]} 5...
Nfd7 {[%clk 0:03:00.6]} 6. cxd5 {[%clk 0:02:51.5]} 6... Nb6 {[%clk 0:03:00.5]}
7. Qd1 {[%clk 0:02:46.4]} 7... cxd5 {[%clk 0:03:00.8]} 8. Nf3 {[%clk 0:02:44.1]}
8... Bg7 {[%clk 0:03:01.3]} 9. O-O {[%clk 0:02:43.2]} 9... Nc6 {[%clk
0:03:01.5]} 10. Nc3 {[%clk 0:02:38.4]} 10... O-O {[%clk 0:03:01.4]} 11. a4
{[%clk 0:02:33.8]} 11... Nb4 {[%clk 0:02:51.1]} 12. a5 {[%clk 0:02:25.6]} 12...
Nc4 {[%clk 0:02:48.3]} 13. Qa4 {[%clk 0:02:12.8]} 13... Nc6 {[%clk 0:02:32.4]}
14. a6 {[%clk 0:01:16.6]} 14... Nb6 {[%clk 0:02:31]} 15. axb7 {[%clk 0:01:15.8]}
15... Bxb7 {[%clk 0:02:31.6]} 16. Qb3 {[%clk 0:01:14.9]} 16... Nxd4 {[%clk
0:02:15.2]} 17. Nxd4 {[%clk 0:01:13.6]} 17... Bxd4 {[%clk 0:02:16.1]} 18. Rd1
{[%clk 0:01:08.2]} 18... Bxc3 {[%clk 0:01:51.4]} 19. Qxc3 {[%clk 0:01:06.4]}
19... Qc8 {[%clk 0:01:50.2]} 20. Qd4 {[%clk 0:00:56.3]} 20... Qc4 {[%clk
0:01:40.3]} 21. Qe5 {[%clk 0:00:53.3]} 21... Qb4 {[%clk 0:01:03.1]} 22. Bh6
{[%clk 0:00:47.2]} 22... f6 {[%clk 0:01:03.1]} 23. Qe6+ {[%clk 0:00:41.9]} 23...
Rf7 {[%clk 0:01:03.4]} 24. Rac1 {[%clk 0:00:33.8]} 24... Rc8 {[%clk 0:00:33.2]}
25. Rxc8+ {[%clk 0:00:24.1]} 25... Bxc8 {[%clk 0:00:34.1]} 26. Qc6 {[%clk
0:00:23.4]} 26... Bd7 {[%clk 0:00:23.9]} 27. Qb7 {[%clk 0:00:23.3]} 27... e6
{[%clk 0:00:20]} 28. Qb8+ {[%clk 0:00:21.1]} 28... Bc8 {[%clk 0:00:18.2]} 29.
Rc1 {[%clk 0:00:20.5]} 29... Re7 {[%clk 0:00:02.8]} 1-0